bitfinex/quotes_BTCUSD_20220202
["timestamp","ask_amount","ask_price","bid_price","bid_amount"]
[1643790164007,0.63723602,38404.0,38403.0,0.02041403]
[1643790164707,0.23723602,38404.0,38403.0,0.02041403]
[1643790165308,0.23723602,38404.0,38399.0,0.010415]
[1643790165506,0.31771219,38401.0,38399.0,0.010415]
[1643790166306,0.31771219,38401.0,38398.0,0.0206934]
[1643790166507,0.2049247,38399.0,38398.0,0.0206934]
[1643790167308,0.2049247,38399.0,38398.0,0.262545]
[1643790167609,0.2049247,38399.0,38395.0,0.06509881]
[1643790167857,0.31771219,38401.0,38396.0,0.262566]
[1643790168255,0.31771219,38401.0,38396.0,0.327663]
[1643790168657,0.25182932,38399.0,38396.0,0.065097]
[1643790168857,0.25182932,38399.0,38397.0,0.262559]
[1643790169056,0.25182932,38399.0,38397.0,0.312559]
[1643790169257,0.31771219,38401.0,38397.0,0.05]
[1643790169859,0.31771219,38401.0,38396.0,0.115097]
[1643790170258,0.2742352,38400.0,38396.0,0.05]
[1643790170459,0.31771219,38401.0,38397.0,0.065097]
[1643790170658,0.31771219,38401.0,38397.0,0.130194]
[1643790170859,0.31771219,38401.0,38397.0,0.230194]
[1643790171600,0.31771219,38401.0,38397.0,0.165097]
[1643790172901,0.31771219,38401.0,38397.0,0.065097]
[1643790175350,0.31771219,38401.0,38398.0,0.262553]
[1643790175548,0.46126232,38404.0,38398.0,0.262553]
[1643790175751,0.23854032,38404.0,38399.0,0.06509362]
[1643790175948,0.23854032,38404.0,38400.0,0.262534]
[1643790176361,0.23854032,38404.0,38400.0,0.312534]
[1643790176553,0.49245748,38409.0,38400.0,0.377626]
[1643790176751,0.49245748,38409.0,38402.0,0.06508773]
[1643790176752,0.00130436,38404.0,38402.0,0.06508773]
[1643790176951,0.00130436,38404.0,38403.0,0.39062113]
[1643790177354,0.00130436,38404.0,38403.0,0.49062113]
[1643790177752,0.37645748,38409.0,38403.0,0.49062113]
[1643790177951,0.00130434,38405.0,38403.0,0.49062113]
[1643790178150,0.00130434,38405.0,38403.0,0.36251]
[1643790178351,0.00130434,38405.0,38404.0,0.05]
[1643790178551,0.00130434,38405.0,38404.0,0.312501]
[1643790179011,0.37645748,38409.0,38404.0,0.312501]
[1643790179210,0.00130432,38406.0,38404.0,0.05]
[1643790179410,0.00130432,38406.0,38405.0,0.262491]
[1643790179610,0.00130432,38406.0,38405.0,0.312491]
[1643790180212,0.25700206,38410.0,38405.0,0.05]
[1643790180411,0.0013043,38407.0,38405.0,0.05]
[1643790180612,0.0013043,38407.0,38405.0,0.06508293]
[1643790181414,0.35569749,38410.0,38405.0,0.06508293]
[1643790181615,0.0013043,38408.0,38405.0,0.06508293]
[1643790182613,0.35569749,38410.0,38405.0,0.06508293]
[1643790182858,0.35569749,38410.0,38406.0,0.065081]
[1643790182859,0.00119528,38408.0,38406.0,0.065081]
[1643790183058,0.00119528,38408.0,38406.0,0.115081]
[1643790183860,0.35569749,38410.0,38406.0,0.115081]
[1643790184361,0.35521188,38410.0,38406.0,0.115081]
[1643790185166,0.35590445,38410.0,38406.0,0.115081]
[1643790185360,0.35590445,38410.0,38406.0,0.165081]
[1643790185559,0.35590445,38410.0,38406.0,0.155081]
[1643790185761,0.00069257,38410.0,38406.0,0.155081]
[1643790185966,0.00069257,38410.0,38407.0,0.4619777]
[1643790186166,0.0011,38413.0,38407.0,0.4619777]
[1643790186610,2.57e-06,38414.0,38410.0,0.02754865]
[1643790186814,0.001,38420.0,38413.0,0.37548456]
[1643790187010,0.001,38420.0,38414.0,0.66782988]
[1643790187211,0.001,38420.0,38416.0,0.6521]
[1643790187411,0.0001,38421.0,38417.0,0.63769688]
[1643790187610,0.0001,38421.0,38420.0,0.26430869]
[1643790187810,0.0001,38421.0,38420.0,0.57887369]
[1643790188009,0.0001,38421.0,38420.0,0.62887369]
[1643790188211,0.0001,38421.0,38420.0,1.00394057]
[1643790188412,0.0019,38422.0,38420.0,1.68827057]
[1643790188614,0.0019,38422.0,38421.0,1.13756388]
[1643790188812,0.0019,38422.0,38421.0,1.28976388]
[1643790189012,0.0019,38422.0,38421.0,1.4855897]
[1643790189013,0.001,38422.0,38421.0,1.4855897]
[1643790189614,0.001,38422.0,38421.0,1.5355897]
[1643790190012,0.002,38428.0,38421.0,1.5355897]
[1643790190013,0.002,38428.0,38422.0,0.765028]
[1643790190266,0.002,38428.0,38427.0,1.3521]
[1643790190463,0.002,38428.0,38427.0,1.702365]
[1643790190659,0.002,38428.0,38427.0,2.41514759]
[1643790191659,0.002,38428.0,38427.0,2.18242767]
[1643790191860,0.002,38428.0,38427.0,2.60242767]
[1643790192262,0.00175896,38428.0,38427.0,2.68958956]
[1643790192462,0.00175896,38428.0,38427.0,2.60242767]
[1643790192862,0.00175896,38428.0,38427.0,2.37796184]
[1643790193361,0.00175896,38428.0,38427.0,1.40009917]
[1643790193562,0.00175896,38428.0,38427.0,1.116605]
[1643790194605,0.00168032,38428.0,38427.0,1.116605]
[1643790196701,0.00168032,38428.0,38427.0,1.416605]
[1643790197105,0.00168032,38428.0,38427.0,1.116605]
[1643790197758,0.00145566,38428.0,38427.0,1.116605]
[1643790198652,0.00114231,38428.0,38427.0,1.116605]
[1643790200056,0.00114231,38428.0,38427.0,1.40455732]
[1643790200859,0.00114231,38428.0,38427.0,1.59970834]
[1643790201258,0.00114231,38428.0,38427.0,1.90406128]
[1643790201506,0.00114231,38428.0,38427.0,1.44512091]
[1643790201708,0.00114231,38428.0,38427.0,1.63866396]
[1643790201907,0.00114231,38428.0,38427.0,1.68866396]
[1643790202312,0.00114231,38428.0,38427.0,1.63866396]
[1643790202510,0.00040809,38428.0,38427.0,1.63866396]
[1643790202812,0.0003294,38428.0,38427.0,1.68866396]
[1643790203010,0.01218296,38429.0,38427.0,1.68866396]
[1643790203011,0.00903949,38429.0,38428.0,0.4]
[1643790203211,0.01023452,38429.0,38428.0,0.714497]
[1643790203410,0.00999986,38429.0,38428.0,0.77953]
[1643790204213,0.00880483,38429.0,38428.0,0.77953]
[1643790204413,0.00880483,38429.0,38428.0,0.87953]
[1643790204614,0.00880483,38429.0,38428.0,0.97953]
[1643790206452,0.00880483,38429.0,38428.0,1.21953]
[1643790207254,0.00880483,38429.0,38428.0,1.229937]
[1643790207654,0.00880483,38429.0,38428.0,1.21953]
[1643790208458,0.00880483,38429.0,38428.0,0.81953]
[1643790208856,0.00858037,38429.0,38428.0,0.81953]
[1643790210505,0.00858037,38429.0,38428.0,0.76733]
[1643790210706,0.00858037,38429.0,38428.0,0.66733]
[1643790210906,0.00850201,38429.0,38428.0,0.602297]
[1643790211106,0.00850201,38429.0,38428.0,0.612705]
[1643790211707,0.00850201,38429.0,38428.0,0.602297]
[1643790214857,0.00305467,38429.0,38428.0,0.552297]
[1643790216717,0.00305467,38429.0,38428.0,0.602297]
[1643790217120,0.00305467,38429.0,38428.0,0.632369]
[1643790218318,0.00305467,38429.0,38428.0,0.682369]
[1643790218517,0.00305467,38429.0,38428.0,0.732369]
[1643790219118,0.00305467,38429.0,38428.0,0.742777]
[1643790219318,0.00305467,38429.0,38428.0,0.732369]
[1643790221956,0.00305467,38429.0,38428.0,0.93717993]
[1643790222961,0.00305467,38429.0,38428.0,0.742778]
[1643790223156,0.00305467,38429.0,38428.0,0.732369]
[1643790226210,0.00305467,38429.0,38428.0,0.602297]
[1643790226812,0.00305467,38429.0,38428.0,0.612706]
[1643790227210,0.00305467,38429.0,38428.0,0.602297]
[1643790228055,0.00305467,38429.0,38428.0,0.34]
[1643790228555,0.00305467,38429.0,38428.0,0.602297]
[1643790231808,0.02642558,38433.0,38428.0,0.602297]
[1643790232009,0.0011928,38430.0,38428.0,0.34]
[1643790232209,0.0011928,38430.0,38429.0,0.262287]
[1643790232410,0.0011928,38430.0,38428.0,0.34]
[1643790233010,0.02642558,38433.0,38428.0,0.34]
[1643790235111,0.0968473,38433.0,38428.0,0.34]
[1643790235357,0.09715188,38434.0,38429.0,0.13008814]
[1643790235559,0.00130708,38432.0,38429.0,0.13008814]
[1643790236557,0.1,38435.0,38429.0,0.13008814]
[1643790236758,0.00130708,38432.0,38429.0,0.13008814]
[1643790237361,0.00130708,38432.0,38429.0,0.06504514]
[1643790237562,0.3670422,38431.0,38429.0,0.06504514]
[1643790237766,0.45102,38430.0,38428.0,0.29]
[1643790237963,0.73052251,38430.0,38428.0,0.29]
[1643790240208,0.63052251,38430.0,38428.0,0.29]
[1643790240407,0.73052251,38430.0,38428.0,0.24]
[1643790243260,0.84154677,38429.0,38428.0,0.24]
[1643790243459,1.19256677,38429.0,38428.0,0.24]
[1643790245260,1.24476677,38429.0,38428.0,0.24]
[1643790245460,1.12081762,38429.0,38428.0,0.24]
[1643790245760,1.16923692,38429.0,38428.0,0.24]
[1643790245961,1.18305609,38429.0,38428.0,0.24]
[1643790246263,1.23305609,38429.0,38428.0,0.24]
[1643790246516,1.18305609,38429.0,38428.0,0.24]
[1643790246713,1.28305609,38429.0,38428.0,0.24]
[1643790247716,1.18305609,38429.0,38428.0,0.24]
[1643790248016,1.28305609,38429.0,38428.0,0.24]
[1643790249619,1.18305609,38429.0,38428.0,0.24]
[1643790250020,1.12671387,38429.0,38428.0,0.24]
[1643790250267,1.17671387,38429.0,38428.0,0.24]
[1643790250461,1.27671387,38429.0,38428.0,0.24]
[1643790250659,1.17671387,38429.0,38428.0,0.24]
[1643790250861,1.22671387,38429.0,38428.0,0.24]
[1643790251060,1.32671387,38429.0,38428.0,0.24]
[1643790251461,1.22671387,38429.0,38428.0,0.24]
[1643790251767,1.12671387,38429.0,38428.0,0.24]
[1643790251960,1.32671387,38429.0,38428.0,0.24]
[1643790252160,1.22671387,38429.0,38428.0,0.24]
[1643790252562,1.32671387,38429.0,38428.0,0.24]
[1643790252964,1.12671387,38429.0,38428.0,0.24]
[1643790253163,1.22671387,38429.0,38428.0,0.24]
[1643790253363,0.35102,38429.0,38428.0,0.24]
[1643790253564,0.065063,38433.0,38428.0,0.24]
[1643790253763,0.35221363,38432.0,38428.0,0.24]
[1643790254210,0.6309185,38432.0,38428.0,0.24]
[1643790254609,0.1,38431.0,38428.0,0.24]
[1643790254808,0.35102,38430.0,38428.0,0.24]
[1643790255710,0.00119366,38432.0,38428.0,0.24]
[1643790255910,0.065056,38434.0,38428.0,0.24]
[1643790256109,0.00119364,38432.0,38428.0,0.24]
[1643790256510,0.26973012,38432.0,38428.0,0.24]
[1643790256912,0.04258521,38431.0,38428.0,0.24]
[1643790258261,0.09271617,38430.0,38428.0,0.24]
[1643790258458,0.03820742,38429.0,38428.0,0.24]
[1643790260465,0.00119371,38432.0,38428.0,0.24]
[1643790260665,0.002,38436.0,38429.0,0.262289]
[1643790260865,0.00119369,38432.0,38430.0,0.2745715]
[1643790261067,0.00119369,38432.0,38431.0,0.962272]
[1643790261367,0.00119369,38432.0,38431.0,1.4774311]
[1643790261815,0.002,38436.0,38431.0,1.4774311]
[1643790262015,0.002,38436.0,38433.0,0.130064]
[1643790262218,0.002,38436.0,38434.0,0.262246]
[1643790262816,0.002,38436.0,38435.0,0.20020278]
[1643790263015,0.002,38436.0,38435.0,0.51243978]
[1643790265017,0.002,38436.0,38435.0,0.57747078]
[1643790265278,0.002,38436.0,38435.0,0.312237]
[1643790266467,0.002,38436.0,38435.0,0.74197331]
[1643790267669,0.002,38436.0,38435.0,0.167231]
[1643790268269,0.002,38436.0,38435.0,0.429468]
[1643790269708,0.00219365,38437.0,38435.0,0.429468]
[1643790269909,0.03053438,38440.0,38435.0,0.167231]
[1643790270308,0.03053438,38440.0,38435.0,0.1022]
[1643790270709,0.03053438,38440.0,38435.0,0.0522]
[1643790270911,0.28879696,38440.0,38435.0,0.0522]
[1643790271310,0.35699552,38440.0,38435.0,0.0522]
[1643790271510,0.10575189,38438.0,38434.0,0.18006605]
[1643790271712,0.14211929,38438.0,38434.0,0.18006605]
[1643790271912,0.14211929,38438.0,38434.0,0.05]
[1643790272110,0.0409464,38437.0,38434.0,0.05]
[1643790272510,0.13298017,38437.0,38434.0,0.05]
[1643790272775,0.03529124,38435.0,38434.0,0.05]
[1643790272966,0.43078697,38438.0,38434.0,0.05]
[1643790273164,0.04094216,38437.0,38434.0,0.05]
[1643790273366,0.43078697,38438.0,38431.0,0.00124204]
[1643790273666,0.14658743,38434.0,38431.0,0.00124204]
[1643790273866,0.03670062,38433.0,38430.0,0.13008473]
[1643790274065,0.03670062,38433.0,38431.0,0.00124204]
[1643790274866,0.04292954,38432.0,38431.0,0.00124204]
[1643790275068,0.03464552,38434.0,38431.0,0.1994024]
[1643790275270,0.31758108,38438.0,38431.0,0.4616674]
[1643790275467,0.04628045,38439.0,38431.0,0.1994024]
[1643790275667,0.03423616,38438.0,38431.0,0.1994024]
[1643790275867,0.03638994,38439.0,38431.0,0.19874942]
[1643790276267,0.03508157,38439.0,38431.0,0.19874942]
[1643790276515,0.03625048,38439.0,38431.0,0.32979562]
[1643790276715,0.03625048,38439.0,38431.0,0.1310462]
[1643790276716,0.00116891,38439.0,38431.0,0.1310462]
[1643790276915,0.00116891,38439.0,38431.0,0.26189968]
[1643790277317,0.03905593,38439.0,38431.0,0.26189968]
[1643790277516,0.04060392,38438.0,38431.0,0.26093673]
[1643790277720,0.04101808,38437.0,38431.0,0.26189968]
[1643790277920,0.03583988,38435.0,38431.0,0.26189968]
[1643790278117,0.00116891,38439.0,38432.0,0.262259]
[1643790278318,0.04759886,38439.0,38432.0,0.05]
[1643790278616,0.03557435,38438.0,38432.0,0.05]
[1643790278819,0.04402239,38437.0,38432.0,0.05]
[1643790279016,0.00116892,38439.0,38432.0,0.05]
[1643790279017,0.04738877,38435.0,38432.0,0.05]
[1643790279218,0.03404015,38434.0,38432.0,0.05]
[1643790279417,0.00116892,38439.0,38433.0,0.262252]
[1643790279619,0.00116892,38439.0,38432.0,0.05]
[1643790279819,0.37640158,38440.0,38432.0,0.1150391]
[1643790280021,0.00120031,38439.0,38433.0,0.19769735]
[1643790280270,0.00120031,38439.0,38432.0,0.1800791]
[1643790281064,0.32640158,38440.0,38432.0,0.1800791]
[1643790281265,0.00120031,38439.0,38432.0,0.1800791]
[1643790281466,0.0453967,38439.0,38432.0,0.2590791]
[1643790281765,0.03627492,38438.0,38433.0,0.19734052]
[1643790282464,0.03627492,38438.0,38432.0,0.2590791]
[1643790282966,0.03524531,38435.0,38432.0,0.1940391]
[1643790283765,0.03524531,38435.0,38433.0,0.065039]
[1643790285112,0.09357552,38434.0,38433.0,0.065039]
[1643790285312,0.12857333,38434.0,38433.0,0.065039]
[1643790286514,0.03436198,38435.0,38433.0,0.32729]
[1643790286713,0.00119322,38439.0,38433.0,0.45735802]
[1643790286714,0.0442973,38439.0,38433.0,0.45735802]
[1643790286915,0.04690805,38435.0,38434.0,0.05]
[1643790287115,0.09234996,38438.0,38434.0,0.05]
[1643790287317,0.0479672,38437.0,38434.0,0.04992793]
[1643790287965,0.0479672,38437.0,38434.0,0.17999595]
[1643790288267,0.09411698,38438.0,38434.0,0.17999595]
[1643790288465,0.13114571,38438.0,38434.0,0.17999595]
[1643790288666,0.12888336,38437.0,38434.0,0.17999595]
[1643790288866,0.13672366,38437.0,38434.0,0.17999595]
[1643790289264,0.03576207,38437.0,38434.0,0.17992388]
[1643790289466,0.26136258,38440.0,38434.0,0.17992388]
[1643790289667,0.10093651,38435.0,38434.0,0.17992388]
[1643790289866,0.09887248,38435.0,38434.0,0.17992388]
[1643790290066,0.04227266,38438.0,38434.0,0.17992388]
[1643790290266,0.10444902,38435.0,38434.0,0.17992388]
[1643790290971,0.09275187,38435.0,38434.0,0.17992388]
[1643790292611,0.09275187,38435.0,38434.0,0.44216788]
[1643790293211,0.09275187,38435.0,38434.0,0.17992388]
[1643790294917,0.09275187,38435.0,38434.0,0.13006802]
[1643790295266,0.09275187,38435.0,38432.0,0.1440452]
[1643790295463,0.27089878,38434.0,38432.0,0.1440452]
[1643790295663,0.065046,38434.0,38432.0,0.1440452]
[1643790295864,0.24408116,38433.0,38432.0,0.1440452]
[1643790296062,0.065046,38434.0,38432.0,0.079]
[1643790296862,0.38410874,38434.0,38432.0,0.079]
[1643790297263,0.6677331,38434.0,38432.0,0.079]
[1643790298065,0.38410874,38434.0,38432.0,0.079]
[1643790298466,0.065046,38434.0,38432.0,0.079]
[1643790298869,0.065046,38434.0,38432.0,0.129]
[1643790302777,1.16029791,38433.0,38432.0,0.079]
[1643790302966,1.25737443,38433.0,38432.0,0.079]
[1643790305865,1.3597946,38433.0,38432.0,0.079]
[1643790306067,1.25737443,38433.0,38432.0,0.079]
[1643790306265,1.40737443,38433.0,38432.0,0.079]
[1643790306710,1.35737443,38433.0,38432.0,0.079]
[1643790308811,1.40737443,38433.0,38432.0,0.079]
[1643790309814,1.35737443,38433.0,38432.0,0.079]
[1643790310014,1.40737443,38433.0,38432.0,0.079]
[1643790310267,1.15102,38433.0,38432.0,0.079]
[1643790310461,1.05102,38433.0,38432.0,0.079]
[1643790310660,0.35102,38433.0,38432.0,0.079]
[1643790310861,0.57649445,38433.0,38432.0,0.079]
[1643790311461,0.82649445,38433.0,38432.0,0.079]
[1643790311663,0.87649445,38433.0,38432.0,0.079]
[1643790311861,0.97649445,38433.0,38432.0,0.079]
[1643790312862,0.67649445,38433.0,38432.0,0.079]
[1643790313261,0.45102,38433.0,38432.0,0.079]
[1643790313663,0.45076968,38433.0,38432.0,0.079]
[1643790314913,0.35076968,38433.0,38432.0,0.079]
[1643790315115,0.35102,38433.0,38432.0,0.079]
[1643790316621,0.44365501,38433.0,38432.0,0.079]
[1643790316823,0.35102,38433.0,38432.0,0.079]
[1643790317318,0.45028274,38433.0,38432.0,0.079]
[1643790317782,0.45272714,38433.0,38432.0,0.079]
[1643790317977,0.35102,38433.0,38432.0,0.079]
[1643790318177,0.45533418,38433.0,38432.0,0.079]
[1643790318377,0.35102,38433.0,38432.0,0.079]
[1643790318577,0.44733909,38433.0,38432.0,0.079]
[1643790318778,0.35102,38433.0,38432.0,0.079]
[1643790324412,0.55484833,38433.0,38432.0,0.079]
[1643790324813,0.60484833,38433.0,38432.0,0.079]
[1643790326867,0.55484833,38433.0,38432.0,0.079]
[1643790329314,0.65555828,38433.0,38432.0,0.079]
[1643790329516,0.55484833,38433.0,38432.0,0.079]
[1643790329816,0.65295934,38433.0,38432.0,0.079]
[1643790330016,0.55484833,38433.0,38432.0,0.079]
[1643790330213,0.65975448,38433.0,38432.0,0.079]
[1643790330415,0.55484833,38433.0,38432.0,0.079]
[1643790330616,0.64825698,38433.0,38432.0,0.079]
[1643790330815,0.55484833,38433.0,38432.0,0.069]
[1643790331014,0.65273429,38433.0,38432.0,0.069]
[1643790331215,0.55484833,38433.0,38432.0,0.069]
[1643790331417,0.65689745,38433.0,38432.0,0.069]
[1643790331615,0.55484833,38433.0,38432.0,0.069]
[1643790331816,0.60484833,38433.0,38432.0,0.069]
[1643790332766,0.55484833,38433.0,38432.0,0.069]
[1643790334462,0.35102,38433.0,38432.0,0.069]
[1643790341863,0.45487863,38433.0,38432.0,0.069]
[1643790342065,0.35102,38433.0,38432.0,0.069]
[1643790342264,0.44441704,38433.0,38432.0,0.069]
[1643790342466,0.35102,38433.0,38432.0,0.069]
[1643790342664,0.45186955,38433.0,38432.0,0.069]
[1643790342867,0.35102,38433.0,38432.0,0.069]
[1643790343064,0.44285545,38433.0,38432.0,0.069]
[1643790343265,0.35102,38433.0,38432.0,0.069]
[1643790343467,0.44427862,38433.0,38432.0,0.069]
[1643790343665,0.35102,38433.0,38432.0,0.069]
[1643790343866,0.45334226,38433.0,38432.0,0.069]
[1643790344110,0.35102,38433.0,38432.0,0.069]
[1643790344309,0.44205039,38433.0,38432.0,0.069]
[1643790344509,0.35102,38433.0,38432.0,0.069]
[1643790344709,0.5012094,38433.0,38432.0,0.069]
[1643790344910,0.40102,38433.0,38432.0,0.069]
[1643790345809,0.351035,38433.0,38432.0,0.069]
[1643790346311,0.065046,38434.0,38432.0,0.069]
[1643790346510,0.351035,38433.0,38432.0,0.069]
[1643790349267,0.7234065,38433.0,38432.0,0.069]
[1643790349462,0.401035,38433.0,38432.0,0.069]
[1643790349864,0.851035,38433.0,38432.0,0.069]
[1643790350064,0.401035,38433.0,38432.0,0.069]
[1643790350468,0.43064436,38438.0,38432.0,0.069]
[1643790350663,0.351035,38437.0,38432.0,0.069]
[1643790350866,0.451035,38437.0,38432.0,0.069]
[1643790351516,0.65627387,38437.0,38432.0,0.069]
[1643790351817,0.1,38437.0,38432.0,0.069]
[1643790352418,0.351035,38436.0,38432.0,0.069]
[1643790352619,0.1,38437.0,38432.0,0.069]
[1643790352818,0.29765814,38438.0,38432.0,0.069]
[1643790353018,0.351035,38437.0,38432.0,0.069]
[1643790353219,0.32837715,38436.0,38432.0,0.069]
[1643790353423,0.351035,38435.0,38432.0,0.069]
[1643790353618,0.20483822,38434.0,38432.0,0.069]
[1643790353820,0.651035,38433.0,38432.0,0.069]
[1643790356567,0.351035,38433.0,38432.0,0.069]
[1643790356968,0.651035,38433.0,38432.0,0.069]
[1643790357369,0.351035,38433.0,38432.0,0.069]
[1643790358370,0.3509205,38433.0,38432.0,0.069]
[1643790360817,0.351035,38436.0,38432.0,0.069]
[1643790361220,0.1,38435.0,38432.0,0.069]
[1643790361417,0.351035,38434.0,38432.0,0.069]
[1643790363966,0.22795263,38433.0,38432.0,0.069]
[1643790364168,1.27898763,38433.0,38432.0,0.069]
[1643790364366,0.67898763,38433.0,38432.0,0.069]
[1643790364567,0.451035,38433.0,38432.0,0.069]
[1643790370269,0.44660146,38433.0,38432.0,0.069]
[1643790371266,0.351035,38433.0,38432.0,0.069]
[1643790371568,0.351035,38434.0,38432.0,0.13405284]
[1643790372268,0.4,38433.0,38432.0,0.13405284]
[1643790372466,0.751035,38433.0,38432.0,0.13405284]
[1643790375120,0.451035,38433.0,38432.0,0.13405284]
[1643790376922,0.351035,38433.0,38432.0,0.13405284]
[1643790377122,0.0011,38438.0,38432.0,0.33782113]
[1643790377321,0.0011,38438.0,38432.0,0.43782113]
[1643790377622,0.0011,38438.0,38432.0,0.23405284]
[1643790377868,0.0011,38438.0,38432.0,0.18405284]
[1643790378170,0.0011,38438.0,38432.0,0.20384607]
[1643790378366,0.0011,38438.0,38433.0,0.19513004]
[1643790378866,0.0011,38438.0,38434.0,0.05]
[1643790379066,0.0011,38438.0,38435.0,0.06504249]
[1643790379968,0.351035,38437.0,38435.0,0.06504249]
[1643790380170,0.0011,38438.0,38435.0,0.06504249]
[1643790382520,0.351035,38437.0,38435.0,0.06504249]
[1643790382720,0.351035,38437.0,38435.0,0.11504249]
[1643790384022,0.00075478,38437.0,38435.0,0.11504249]
[1643790391820,0.00075478,38437.0,38435.0,0.05]
[1643790392219,0.00075478,38437.0,38433.0,0.06505162]
[1643790397019,0.00075478,38437.0,38435.0,0.137]
[1643790397322,0.04718005,38437.0,38435.0,0.137]
[1643790398020,0.09771164,38436.0,38435.0,0.137]
[1643790398222,0.74874664,38436.0,38435.0,0.137]
[1643790398420,0.78302122,38436.0,38435.0,0.137]
[1643790398621,0.88302122,38436.0,38435.0,0.137]
[1643790399023,0.84874664,38436.0,38435.0,0.137]
[1643790399223,0.751035,38436.0,38435.0,0.137]
[1643790400575,0.451035,38436.0,38435.0,0.137]
[1643790407126,0.351035,38436.0,38435.0,0.137]
[1643790408375,0.601035,38436.0,38435.0,0.137]
[1643790408777,0.351035,38436.0,38435.0,0.137]
[1643790411179,0.601035,38436.0,38435.0,0.137]
[1643790415026,0.351035,38436.0,38435.0,0.137]
[1643790416273,0.751035,38436.0,38435.0,0.137]
[1643790417077,0.351035,38436.0,38435.0,0.137]
[1643790417677,0.451035,38436.0,38435.0,0.137]
[1643790420125,0.701035,38436.0,38435.0,0.137]
[1643790425479,0.451035,38436.0,38435.0,0.137]
[1643790426082,0.79560439,38436.0,38435.0,0.137]
[1643790427322,0.751035,38436.0,38435.0,0.137]
[1643790427523,0.451035,38436.0,38435.0,0.137]
[1643790430373,0.451035,38436.0,38434.0,0.137]
[1643790430572,0.4,38435.0,38434.0,0.137]
[1643790430775,0.74973915,38435.0,38434.0,0.137]
[1643790430973,0.74919915,38435.0,38434.0,0.137]
[1643790439280,0.73919915,38435.0,38434.0,0.137]
[1643790441640,0.73891724,38435.0,38434.0,0.137]
[1643790443338,0.94554048,38435.0,38434.0,0.137]
[1643790443538,0.73891724,38435.0,38434.0,0.137]
[1643790445040,0.73891724,38435.0,38433.0,0.137]
[1643790445280,0.351033,38434.0,38433.0,0.137]
[1643790449131,0.0011,38438.0,38433.0,0.43896336]
[1643790449333,0.0011,38438.0,38433.0,0.48896336]
[1643790449731,0.00040681,38438.0,38433.0,0.48896336]
[1643790450134,0.00040681,38438.0,38433.0,0.50844301]
[1643790450333,0.00040681,38438.0,38433.0,0.573481]
[1643790450534,0.00040681,38438.0,38434.0,0.19512]
[1643790458636,0.00040681,38438.0,38437.0,0.1]
[1643790458838,0.0013812,38445.0,38437.0,0.1]
[1643790458839,0.001,38451.0,38440.0,0.05]
[1643790459037,0.001,38451.0,38441.0,0.314002]
[1643790459236,0.00523321,38449.0,38441.0,0.1022]
[1643790459436,0.2594678,38449.0,38441.0,0.1022]
[1643790459636,0.2594678,38449.0,38442.0,0.130036]
[1643790459836,0.2594678,38449.0,38443.0,0.0522]
[1643790460036,0.25423459,38449.0,38444.0,0.065018]
[1643790460312,0.25423459,38449.0,38445.0,0.1822358]
[1643790460496,0.25423459,38449.0,38445.0,0.2322358]
[1643790461496,0.25423459,38449.0,38445.0,0.23351045]
[1643790461699,0.25423459,38449.0,38446.0,0.20354594]
[1643790462096,0.25423459,38449.0,38446.0,0.26856394]
[1643790462297,0.25423459,38449.0,38446.0,0.115018]
[1643790462697,0.25423459,38449.0,38447.0,0.13003788]
[1643790464629,0.25423459,38449.0,38446.0,0.11629261]
[1643790464828,0.25423459,38449.0,38446.0,0.180041]
[1643790465028,0.25423459,38449.0,38446.0,0.05127463]
[1643790465433,0.92458968,38448.0,38443.0,0.05]
[1643790465631,0.92458968,38448.0,38437.0,0.244644]
[1643790465632,0.351033,38447.0,38437.0,0.1146]
[1643790465831,0.3144259,38446.0,38437.0,0.1146]
[1643790466033,0.04032365,38444.0,38432.0,0.184044]
[1643790466230,0.351033,38443.0,38432.0,0.184044]
[1643790466431,0.28182394,38438.0,38432.0,0.184044]
[1643790466630,0.28182394,38438.0,38432.0,0.134044]
[1643790467232,0.28182394,38438.0,38432.0,0.069]
[1643790467432,0.28182394,38438.0,38434.0,0.00063592]
[1643790467631,0.351033,38437.0,38434.0,0.00063592]
[1643790467882,0.38921138,38436.0,38434.0,0.00063592]
[1643790468085,0.93110869,38435.0,38434.0,0.00063592]
[1643790468281,1.08330869,38435.0,38434.0,0.00063592]
[1643790468481,0.64732501,38434.0,38432.0,0.069]
[1643790468681,1.26143023,38434.0,38433.0,0.13763594]
[1643790469280,0.91143023,38434.0,38433.0,0.13763594]
[1643790469781,0.70055801,38434.0,38433.0,0.137]
[1643790470582,0.34952501,38434.0,38433.0,0.137]
[1643790474631,0.0522,38434.0,38433.0,0.137]
[1643790475475,0.4522,38434.0,38433.0,0.137]
[1643790475678,0.73319322,38434.0,38433.0,0.137]
[1643790478478,0.73819322,38434.0,38433.0,0.142]
[1643790478682,0.73319322,38434.0,38433.0,0.137]
[1643790479134,0.28099322,38434.0,38433.0,0.137]
[1643790482434,0.53099322,38434.0,38433.0,0.137]
[1643790482634,0.88202622,38434.0,38433.0,0.137]
[1643790483678,0.63174622,38434.0,38433.0,0.137]
[1643790485986,0.68394622,38434.0,38433.0,0.137]
[1643790486184,1.43604622,38434.0,38433.0,0.137]
[1643790486386,1.49176139,38434.0,38433.0,0.137]
[1643790486648,1.54911178,38434.0,38433.0,0.137]
[1643790487246,0.7,38433.0,38432.0,0.07019522]
[1643790487450,1.922103,38433.0,38432.0,0.07019522]
[1643790487845,1.922103,38433.0,38432.0,0.069]
[1643790491991,1.270003,38433.0,38432.0,0.069]
[1643790492993,0.570003,38433.0,38432.0,0.069]
[1643790493193,0.0128721,38434.0,38432.0,0.069]
[1643790493194,0.00697532,38434.0,38432.0,0.069]
[1643790493393,0.28182394,38438.0,38432.0,0.069]
[1643790493794,0.351033,38437.0,38432.0,0.069]
[1643790494032,0.27109918,38436.0,38433.0,0.00119083]